fUSD/lending_fUSD_20260518
["ID","MTS","AMOUNT","RATE_DAILY","PERIOD"]
[422537864,1779042642000,-151.0,0.0001813,2]
[422537893,1779042642000,-500.0,0.000185,2]
[422537888,1779042642000,-1493.0,0.0001841,2]
[422537903,1779042642000,-3000.0,0.00019178,7]
[422537927,1779042642000,-922.67564933,0.00019999,2]
[422537905,1779042642000,-3000.0,0.00019178,12]
[422537901,1779042642000,-3000.0,0.00019178,2]
[422537907,1779042642000,-839.06718577,0.00019178,17]
[422537909,1779042642000,-491.22905312,0.00019731,2]
[422537899,1779042642000,-511.23475019,0.00019,2]
[422537911,1779042642000,-9035.0,0.00019759,2]
[422537897,1779042642000,-491.22,0.00018791,2]
[422537913,1779042642000,-822.79,0.000198,2]
[422537915,1779042642000,-3620.0,0.00019893,2]
[422537917,1779042642000,-151.0,0.00019997,2]
[422537921,1779042642000,-922.66,0.00019999,2]
[422537919,1779042642000,-922.66,0.00019999,2]
[422537848,1779042642000,-151.0,0.0001813,2]
[422537895,1779042642000,-366.12594295,0.000187,2]
[422537852,1779042642000,-151.0,0.0001813,2]
[422537828,1779042642000,-151.0,0.0001813,2]
[422537862,1779042642000,-151.0,0.0001813,2]
[422537797,1779042642000,-1045.58117288,0.00017808,2]
[422537799,1779042642000,-922.66,0.00017899,2]
[422537801,1779042642000,-799.39,0.00017899,2]
[422537805,1779042642000,-300.0,0.00017899,2]
[422537803,1779042642000,-300.0,0.00017899,2]
[422537807,1779042642000,-740.08,0.00017899,2]
[422537812,1779042642000,-7527.41158839,0.00017899,7]
[422537810,1779042642000,-602.24,0.00017899,2]
[422537816,1779042642000,-21152.42594197,0.000179,2]
[422537817,1779042642000,-21152.42594197,0.000179,2]
[422537820,1779042642000,-21152.42594197,0.000179,2]
[422537821,1779042642000,-6453.0,0.00017963,2]
[422537814,1779042642000,-21152.42594199,0.000179,2]
[422537850,1779042642000,-151.0,0.0001813,2]
[422537834,1779042642000,-151.0,0.0001813,2]
[422537824,1779042642000,-165.23316332,0.00018,2]
[422537838,1779042642000,-151.0,0.0001813,2]
[422537830,1779042642000,-151.0,0.0001813,2]
[422537826,1779042642000,-366.12594295,0.00018,2]
[422537840,1779042642000,-151.0,0.0001813,2]
[422537832,1779042642000,-151.0,0.0001813,2]
[422537854,1779042642000,-151.0,0.0001813,2]
[422537856,1779042642000,-151.0,0.0001813,2]
[422537858,1779042642000,-151.0,0.0001813,2]
[422537860,1779042642000,-151.0,0.0001813,2]
[422537842,1779042642000,-151.0,0.0001813,2]
[422537844,1779042642000,-151.0,0.0001813,2]
[422537846,1779042642000,-151.0,0.0001813,2]
[422537836,1779042642000,-151.0,0.0001813,2]
[422537923,1779042642000,-922.66,0.00019999,2]
[422537933,1779042642000,-799.39,0.00019999,2]
[422537937,1779042642000,-799.4461554,0.00019999,2]
[422537996,1779042642000,-1399.55,0.0002,2]
[422538000,1779042642000,-1493.0,0.00020381,2]
[422538011,1779042642000,-2771.76,0.00020548,2]
[422538015,1779042642000,-150.0,0.0002058,2]
[422538002,1779042642000,-3980.73,0.00020548,2]
[422538017,1779042642000,-150.0,0.0002058,2]
[422538007,1779042642000,-3980.73,0.00020548,2]
[422538013,1779042642000,-150.0,0.0002058,2]
[422538009,1779042642000,-3980.72,0.00020548,2]
[422538005,1779042642000,-3980.73,0.00020548,2]
[422538019,1779042642000,-150.0,0.0002058,2]
[422538021,1779042642000,-150.0,0.0002058,2]
[422538023,1779042642000,-150.0,0.0002058,2]
[422538036,1779042642000,-160.0,0.00021,2]
[422538025,1779042642000,-169.84,0.00020639,2]
[422538038,1779042642000,-460.0,0.00021,2]
[422538041,1779042642000,-613.0,0.00021,2]
[422538027,1779042642000,-927.0,0.00020677,2]
[422538043,1779042642000,-154.0,0.00021,2]
[422538030,1779042642000,-3632.0,0.00020677,2]
[422538034,1779042642000,-1927.0,0.00021,2]
[422538032,1779042642000,-214.0,0.00021,2]
[422538045,1779042642000,-174.0,0.00021,2]
[422538049,1779042642000,-158.0,0.00021,2]
[422538047,1779042642000,-429.0,0.00021,2]
[422538051,1779042642000,-158.0,0.00021,2]
[422538053,1779042642000,-1915.0,0.00021,2]
[422537998,1779042642000,-300.0,0.000201,10]
[422537994,1779042642000,-200.0,0.0002,10]
[422538056,1779042642000,-150.0,0.00021066,2]
[422537977,1779042642000,-460.0,0.0002,2]
[422537992,1779042642000,-1915.0,0.0002,2]
[422537931,1779042642000,-799.39,0.00019999,2]
[422537929,1779042642000,-799.39,0.00019999,2]
[422537935,1779042642000,-799.39,0.00019999,2]
[422537939,1779042642000,-740.08,0.00019999,2]
[422537941,1779042642000,-740.08,0.00019999,2]
[422537944,1779042642000,-740.08,0.00019999,2]
[422537946,1779042642000,-740.08,0.00019999,2]
[422537948,1779042642000,-740.16,0.00019999,2]
[422537960,1779042642000,-200000.0,0.0002,2]
[422537950,1779042642000,-602.24,0.00019999,2]
[422537964,1779042642000,-175.87182682,0.0002,2]
[422537956,1779042642000,-602.24,0.00019999,2]
[422537954,1779042642000,-602.24,0.00019999,2]
[422537925,1779042642000,-922.66,0.00019999,2]
[422537958,1779042642000,-602.32899683,0.00019999,2]
[422537962,1779042642000,-175.87182682,0.0002,2]
[422537986,1779042642000,-429.0,0.0002,2]
[422537973,1779042642000,-26034.0,0.0002,2]
[422537981,1779042642000,-154.0,0.0002,2]
[422537979,1779042642000,-613.0,0.0002,2]
[422537988,1779042642000,-158.0,0.0002,2]
[422537971,1779042642000,-214.0,0.0002,2]
[422537975,1779042642000,-160.0,0.0002,2]
[422537984,1779042642000,-174.0,0.0002,2]
[422537969,1779042642000,-175.87182683,0.0002,2]
[422537968,1779042642000,-175.87182682,0.0002,2]
[422537966,1779042642000,-175.87182682,0.0002,2]
[422537952,1779042642000,-602.24,0.00019999,2]
[422537990,1779042642000,-158.0,0.0002,2]
[422538135,1779042643000,-214.0,0.00023,2]
[422538139,1779042643000,-460.0,0.00023,2]
[422538148,1779042643000,-429.0,0.00023,2]
[422538150,1779042643000,-158.0,0.00023,2]
[422538145,1779042643000,-174.0,0.00023,2]
[422538119,1779042643000,-500.0,0.00022136,2]
[422538133,1779042643000,-326.11240246,0.00022831,2]
[422538127,1779042643000,-177.04,0.00022659,2]
[422538130,1779042643000,-4981.84867545,0.00022827,21]
[422538125,1779042643000,-1745.75,0.00022466,2]
[422538143,1779042643000,-154.0,0.00023,2]
[422538141,1779042643000,-613.0,0.00023,2]
[422538164,1779042643000,-927.0,0.00023677,2]
[422538152,1779042643000,-158.0,0.00023,2]
[422538154,1779042643000,-1915.0,0.00023,2]
[422538157,1779042643000,-186.2,0.00023358,2]
[422538159,1779042643000,-9999.99,0.00023368,2]
[422538162,1779042643000,-939.87121781,0.00023619,2]
[422538115,1779042643000,-158.0,0.00022,2]
[422538166,1779042643000,-3632.0,0.00023677,2]
[422538170,1779042643000,-326.11240246,0.00023744,2]
[422538169,1779042643000,-1399.55,0.00023695,2]
[422538181,1779042643000,-460.0,0.00024,2]
[422538173,1779042643000,-177.04,0.00023918,2]
[422538179,1779042643000,-160.0,0.00024,2]
[422538161,1779042643000,-11327.49,0.00023368,2]
[422538175,1779042643000,-822.79,0.00024,7]
[422538137,1779042643000,-160.0,0.00023,2]
[422538123,1779042643000,-1756.73,0.00022466,2]
[422538105,1779042643000,-613.0,0.00022,2]
[422538117,1779042643000,-1915.0,0.00022,2]
[422538177,1779042643000,-214.0,0.00024,2]
[422538060,1779042643000,-1223.0,0.00021066,2]
[422538058,1779042643000,-1270.0,0.00021066,2]
[422538064,1779042643000,-450.0,0.00021084,7]
[422538062,1779042643000,-1200.0,0.00021084,2]
[422538066,1779042643000,-1000.0,0.00021121,7]
[422538075,1779042643000,-250.92,0.00021273,2]
[422538073,1779042643000,-1955.04,0.00021273,2]
[422538068,1779042643000,-210.26,0.00021205,2]
[422538070,1779042643000,-1370.8104131,0.00021225,2]
[422538077,1779042643000,-473.97,0.00021273,2]
[422538081,1779042643000,-6155.0,0.0002171,2]
[422538079,1779042643000,-2189.28,0.00021273,2]
[422538089,1779042643000,-1226.36,0.000219,7]
[422538093,1779042643000,-3075.54,0.00021918,2]
[422538083,1779042643000,-10306.0,0.00021735,2]
[422538087,1779042643000,-200.0,0.000219,7]
[422538091,1779042643000,-5000.0,0.00021918,2]
[422538095,1779042643000,-1004.62,0.00021918,2]
[422538099,1779042643000,-214.0,0.00022,2]
[422538097,1779042643000,-331.53241478,0.00021918,2]
[422538101,1779042643000,-160.0,0.00022,2]
[422538103,1779042643000,-460.0,0.00022,2]
[422538107,1779042643000,-154.0,0.00022,2]
[422538110,1779042643000,-174.0,0.00022,2]
[422538113,1779042643000,-158.0,0.00022,2]
[422538111,1779042643000,-429.0,0.00022,2]
[422538121,1779042643000,-1493.0,0.00022353,2]
[422538085,1779042643000,-1399.55,0.00021847,2]
[422538186,1779042643000,-154.0,0.00024,2]
[422538188,1779042643000,-174.0,0.00024,2]
[422538261,1779042643000,-614.05895688,0.00025,2]
[422538263,1779042643000,-169.0,0.00025,2]
[422538276,1779042643000,-500.0,0.00025199,3]
[422538278,1779042643000,-183.1,0.00025234,2]
[422538280,1779042643000,-175.5,0.00025234,30]
[422538270,1779042643000,-173.0,0.00025,2]
[422538284,1779042643000,-174.6,0.00025234,30]
[422538274,1779042643000,-177.04,0.00025176,2]
[422538282,1779042643000,-183.39,0.00025234,2]
[422538265,1779042643000,-185.0,0.00025,2]
[422538267,1779042643000,-442.0,0.00025,2]
[422538272,1779042643000,-1926.4902159,0.00025,2]
[422538286,1779042643000,-482.15270711,0.00025386,2]
[422538247,1779042643000,-183.1,0.00024946,7]
[422538290,1779042643000,-183.1,0.00025523,2]
[422538295,1779042643000,-183.39,0.00025523,2]
[422538297,1779042643000,-174.6,0.00025523,2]
[422538299,1779042643000,-1399.55,0.00025542,7]
[422538311,1779042643000,-473.97,0.00025786,2]
[422538301,1779042643000,-326.11240246,0.00025571,2]
[422538313,1779042643000,-2189.28,0.00025786,2]
[422538315,1779042643000,-175.5,0.00025811,7]
[422538317,1779042643000,-174.6,0.00025811,7]
[422538305,1779042643000,-500.0,0.00025771,2]
[422538303,1779042643000,-210.26,0.00025644,2]
[422538307,1779042643000,-1955.04,0.00025786,2]
[422538309,1779042643000,-250.92,0.00025786,2]
[422538184,1779042643000,-613.0,0.00024,2]
[422538292,1779042643000,-175.5,0.00025523,2]
[422538244,1779042643000,-500.0,0.00024925,3]
[422538288,1779042643000,-375.81059483,0.00025473,3]
[422538242,1779042643000,-160.0,0.00024768,3]
[422538249,1779042643000,-175.5,0.00024946,7]
[422538206,1779042643000,-405.16938939,0.00024284,2]
[422538199,1779042643000,-150.0,0.00024066,2]
[422538204,1779042643000,-1223.0,0.00024066,2]
[422538195,1779042643000,-169.0,0.00024,2]
[422538193,1779042643000,-158.0,0.00024,2]
[422538197,1779042643000,-1915.0,0.00024,2]
[422538208,1779042643000,-1493.0,0.00024324,2]
[422538190,1779042643000,-429.0,0.00024,2]
[422538210,1779042643000,-525.27670665,0.0002439,2]
[422538224,1779042643000,-1000.0,0.00024658,2]
[422538213,1779042643000,-742.1877375,0.00024397,2]
[422538227,1779042643000,-192.14,0.00024658,2]
[422538231,1779042643000,-183.1,0.00024658,2]
[422538202,1779042643000,-1270.0,0.00024066,2]
[422538215,1779042643000,-160.0,0.00024397,2]
[422538229,1779042643000,-326.11240246,0.00024658,2]
[422538257,1779042643000,-179.47870466,0.00025,2]
[422538251,1779042643000,-183.39,0.00024946,7]
[422538253,1779042643000,-174.6,0.00024946,7]
[422538255,1779042643000,-231.45405378,0.00025,2]
[422538240,1779042643000,-500.0,0.00024725,2]
[422538259,1779042643000,-472.70135963,0.00025,2]
[422538236,1779042643000,-183.39,0.00024658,2]
[422538233,1779042643000,-175.5,0.00024658,2]
[422538222,1779042643000,-169.84,0.00024566,2]
[422538220,1779042643000,-160.0,0.00024397,2]
[422538218,1779042643000,-160.0,0.00024397,2]
[422538238,1779042643000,-174.6,0.00024658,2]
[422538402,1779042644000,-771.65,0.00027731,7]
[422538400,1779042644000,-1021.96,0.000277,14]
[422538398,1779042644000,-5629.37,0.000274,14]
[422538394,1779042644000,-18347.63,0.00027397,10]
[422538389,1779042644000,-526.72,0.00027397,2]
[422538399,1779042644000,-177.04,0.00027694,2]
[422538395,1779042644000,-403.8672296,0.00027397,7]
[422538396,1779042644000,-324.88,0.000274,7]
[422538397,1779042644000,-238.64,0.000274,7]
[422538379,1779042644000,-500.0,0.00027397,2]
[422538391,1779042644000,-300.0,0.00027397,2]
[422538412,1779042644000,-326.11240246,0.00028311,2]
[422538393,1779042644000,-22017.16,0.00027397,10]
[422538404,1779042644000,-500.0,0.000278,7]
[422538420,1779042644000,-306.01,0.0002863,2]
[422538410,1779042644000,-1493.0,0.00028267,2]
[422538408,1779042644000,-152.0,0.00028088,3]
[422538414,1779042644000,-169.84,0.00028493,2]
[422538416,1779042644000,-822.79,0.000285,7]
[422538424,1779042644000,-156.0,0.0002863,2]
[422538428,1779042644000,-306.29,0.0002863,2]
[422538418,1779042644000,-152.58,0.0002863,2]
[422538430,1779042644000,-410.26,0.0002863,2]
[422538422,1779042644000,-410.8,0.0002863,2]
[422538426,1779042644000,-152.82,0.0002863,2]
[422538433,1779042644000,-155.2,0.0002863,2]
[422538437,1779042644000,-150.0,0.00028654,2]
[422538374,1779042644000,-326.11240246,0.00027397,2]
[422538406,1779042644000,-504.0,0.00027963,2]
[422538376,1779042644000,-500.0,0.00027397,2]
[422538435,1779042644000,-150.0,0.00028654,2]
[422538385,1779042644000,-500.0,0.00027397,2]
[422538323,1779042644000,-822.79,0.000261,7]
[422538321,1779042644000,-1370.8104131,0.00025894,2]
[422538327,1779042644000,-177.04,0.00026435,2]
[422538325,1779042644000,-1493.0,0.00026296,2]
[422538331,1779042644000,-927.0,0.00026677,2]
[422538340,1779042644000,-1223.0,0.00027066,2]
[422538329,1779042644000,-326.11240246,0.00026484,2]
[422538333,1779042644000,-3632.0,0.00026677,2]
[422538319,1779042644000,-13956.15555275,0.00025824,2]
[422538335,1779042644000,-150.0,0.00027066,2]
[422538342,1779042644000,-1927.0,0.000271,7]
[422538338,1779042644000,-1270.0,0.00027066,2]
[422538356,1779042644000,-500.0,0.00027123,2]
[422538387,1779042644000,-1500.0,0.00027397,2]
[422538346,1779042644000,-150.0,0.00027123,20]
[422538360,1779042644000,-500.0,0.00027123,2]
[422538354,1779042644000,-500.0,0.00027123,2]
[422538348,1779042644000,-500.0,0.00027123,2]
[422538352,1779042644000,-500.0,0.00027123,2]
[422538364,1779042644000,-500.0,0.00027123,2]
[422538362,1779042644000,-500.0,0.00027123,2]
[422538350,1779042644000,-500.0,0.00027123,2]
[422538366,1779042644000,-380.0,0.00027123,2]
[422538368,1779042644000,-392.65031015,0.00027123,2]
[422538370,1779042644000,-504.0,0.00027137,2]
[422538383,1779042644000,-500.0,0.00027397,2]
[422538381,1779042644000,-500.0,0.00027397,2]
[422538372,1779042644000,-1399.55,0.0002739,7]
[422538358,1779042644000,-500.0,0.00027123,2]
[422538463,1779042644000,-152.82,0.0002867,7]
[422538537,1779042644000,-152.58,0.0002883,30]
[422538439,1779042644000,-150.0,0.00028654,2]
[422538513,1779042644000,-410.8,0.00028788,30]
[422538515,1779042644000,-306.29,0.00028788,30]
[422538502,1779042644000,-306.29,0.00028756,7]
[422538509,1779042644000,-155.2,0.00028759,2]
[422538527,1779042644000,-155.2,0.00028802,7]
[422538517,1779042644000,-410.26,0.00028788,30]
[422538519,1779042644000,-504.0,0.00028789,3]
[422538525,1779042644000,-156.0,0.00028802,7]
[422538535,1779042644000,-410.26,0.0002882,2]
[422538521,1779042644000,-152.58,0.0002879,7]
[422538529,1779042644000,-306.01,0.0002882,2]
[422538523,1779042644000,-152.82,0.0002879,7]
[422538565,1779042644000,-156.0,0.00028888,2]
[422538498,1779042644000,-306.01,0.00028756,7]
[422538533,1779042644000,-306.29,0.0002882,2]
[422538541,1779042644000,-156.0,0.00028845,30]
[422538539,1779042644000,-152.82,0.0002883,30]
[422538545,1779042644000,-306.01,0.00028852,7]
[422538547,1779042644000,-410.8,0.00028852,7]
[422538549,1779042644000,-306.29,0.00028852,7]
[422538551,1779042644000,-410.26,0.00028852,7]
[422538557,1779042644000,-306.01,0.00028883,30]
[422538559,1779042644000,-410.8,0.00028883,30]
[422538553,1779042644000,-152.58,0.00028871,2]
[422538543,1779042644000,-155.2,0.00028845,30]
[422538555,1779042644000,-152.82,0.00028871,2]
[422538563,1779042644000,-410.26,0.00028883,30]
[422538443,1779042644000,-150.0,0.00028654,2]
[422538531,1779042644000,-410.8,0.0002882,2]
[422538507,1779042644000,-156.0,0.00028759,2]
[422538561,1779042644000,-306.29,0.00028883,30]
[422538504,1779042644000,-410.26,0.00028756,7]
[422538500,1779042644000,-410.8,0.00028756,7]
[422538448,1779042644000,-150.0,0.00028654,2]
[422538446,1779042644000,-150.0,0.00028654,2]
[422538451,1779042644000,-159.0,0.00028654,2]
[422538457,1779042644000,-306.29,0.00028661,7]
[422538455,1779042644000,-410.8,0.00028661,7]
[422538444,1779042644000,-150.0,0.00028654,2]
[422538461,1779042644000,-152.58,0.0002867,7]
[422538441,1779042644000,-150.0,0.00028654,2]
[422538459,1779042644000,-410.26,0.00028661,7]
[422538465,1779042644000,-156.0,0.00028673,7]
[422538467,1779042644000,-155.2,0.00028673,7]
[422538469,1779042644000,-306.01,0.00028693,30]
[422538479,1779042644000,-152.58,0.0002871,30]
[422538453,1779042644000,-306.01,0.00028661,7]
[422538477,1779042644000,-5629.37,0.000287,14]
[422538484,1779042644000,-156.0,0.00028716,30]
[422538496,1779042644000,-152.82,0.0002875,2]
[422538493,1779042644000,-410.26,0.00028725,2]
[422538495,1779042644000,-152.58,0.0002875,2]
[422538491,1779042644000,-306.29,0.00028725,2]
[422538490,1779042644000,-410.8,0.00028725,2]
[422538511,1779042644000,-306.01,0.00028788,30]
[422538486,1779042644000,-155.2,0.00028716,30]
[422538482,1779042644000,-152.82,0.0002871,30]
[422538475,1779042644000,-410.26,0.00028693,30]
[422538473,1779042644000,-306.29,0.00028693,30]
[422538471,1779042644000,-410.8,0.00028693,30]
[422538488,1779042644000,-306.01,0.00028725,2]
[422538665,1779042645000,-410.26,0.00029042,7]
[422538655,1779042645000,-152.82,0.00029031,7]
[422538642,1779042645000,-410.8,0.0002901,2]
[422538657,1779042645000,-160.0,0.00029037,3]
[422538651,1779042645000,-155.2,0.00029017,2]
[422538653,1779042645000,-152.58,0.00029031,7]
[422538640,1779042645000,-306.01,0.0002901,2]
[422538638,1779042645000,-324.88,0.00029,7]
[422538659,1779042645000,-306.01,0.00029042,7]
[422538636,1779042645000,-152.82,0.00028991,2]
[422538644,1779042645000,-306.29,0.0002901,2]
[422538622,1779042645000,-150.0,0.00028979,30]
[422538677,1779042645000,-150.0,0.00029074,30]
[422538661,1779042645000,-410.8,0.00029042,7]
[422538646,1779042645000,-410.26,0.0002901,2]
[422538663,1779042645000,-306.29,0.00029042,7]
[422538667,1779042645000,-156.0,0.0002906,7]
[422538669,1779042645000,-155.2,0.0002906,7]
[422538683,1779042645000,-306.01,0.00029074,30]
[422538679,1779042645000,-150.0,0.00029074,30]
[422538681,1779042645000,-194.0,0.00029074,30]
[422538687,1779042645000,-306.29,0.00029074,30]
[422538685,1779042645000,-410.8,0.00029074,30]
[422538689,1779042645000,-410.26,0.00029074,30]
[422538618,1779042645000,-476.0,0.00028974,10]
[422538691,1779042645000,-156.0,0.00029103,30]
[422538649,1779042645000,-156.0,0.00029017,2]
[422538620,1779042645000,-155.2,0.00028974,30]
[422538598,1779042645000,-306.29,0.00028947,7]
[422538634,1779042645000,-152.58,0.00028991,2]
[422538671,1779042645000,-152.58,0.00029072,30]
[422538567,1779042645000,-155.2,0.00028888,2]
[422538569,1779042645000,-152.58,0.00028911,7]
[422538571,1779042645000,-152.82,0.00028911,7]
[422538581,1779042645000,-410.8,0.00028915,2]
[422538579,1779042645000,-306.01,0.00028915,2]
[422538585,1779042645000,-410.26,0.00028915,2]
[422538583,1779042645000,-306.29,0.00028915,2]
[422538587,1779042645000,-156.0,0.00028931,7]
[422538590,1779042645000,-155.2,0.00028931,7]
[422538592,1779042645000,-152.0,0.00028934,30]
[422538594,1779042645000,-306.01,0.00028947,7]
[422538616,1779042645000,-762.0,0.00028974,10]
[422538596,1779042645000,-410.8,0.00028947,7]
[422538602,1779042645000,-152.58,0.00028951,30]
[422538604,1779042645000,-152.82,0.00028951,30]
[422538606,1779042645000,-177.04,0.00028953,2]
[422538612,1779042645000,-168.0,0.00028974,30]
[422538610,1779042645000,-150.0,0.00028974,30]
[422538608,1779042645000,-150.0,0.00028974,30]
[422538614,1779042645000,-156.0,0.00028974,30]
[422538624,1779042645000,-189.0,0.00028979,30]
[422538626,1779042645000,-306.01,0.00028979,30]
[422538628,1779042645000,-410.8,0.00028979,30]
[422538632,1779042645000,-410.26,0.00028979,30]
[422538630,1779042645000,-306.29,0.00028979,30]
[422538600,1779042645000,-410.26,0.00028947,7]
[422538673,1779042645000,-152.82,0.00029072,30]
[422538675,1779042645000,-150.0,0.00029074,30]
[422538695,1779042645000,-306.01,0.00029105,2]
[422538751,1779042645000,-306.01,0.00029201,2]
[422538747,1779042645000,-153.10219616,0.00029195,7]
[422538753,1779042645000,-410.8,0.00029201,2]
[422538765,1779042645000,-410.84,0.00029232,7]
[422538767,1779042645000,-156.03,0.00029232,30]
[422538769,1779042645000,-152.97,0.00029232,2]
[422538771,1779042645000,-306.38,0.00029232,7]
[422538781,1779042645000,-150.54389862,0.00029389,7]
[422538783,1779042645000,-500.0,0.00029407,2]
[422538785,1779042645000,-210.29933904,0.0002949,2]
[422538789,1779042645000,-161.0,0.0002956,30]
[422538773,1779042645000,-410.45,0.00029232,7]
[422538763,1779042645000,-306.15,0.00029232,7]
[422538787,1779042645000,-150.0,0.00029534,2]
[422538775,1779042645000,-155.28,0.00029232,30]
[422538779,1779042645000,-181.73994664,0.00029389,7]
[422538777,1779042645000,-1399.55,0.00029237,7]
[422538798,1779042645000,-3632.0,0.00029677,2]
[422538796,1779042645000,-927.0,0.00029677,2]
[422538800,1779042645000,-884.0,0.00029897,5]
[422538806,1779042645000,-1270.0,0.00030066,2]
[422538809,1779042645000,-1223.0,0.00030066,2]
[422538813,1779042645000,-150.0,0.0003013,30]
[422538802,1779042645000,-200.0,0.0003,2]
[422538811,1779042645000,-1927.0,0.000301,7]
[422538804,1779042645000,-5530.0,0.0003,3]
[422538793,1779042645000,-504.0,0.00029615,4]
[422538757,1779042645000,-410.26,0.00029201,2]
[422538791,1779042645000,-5629.37,0.000296,14]
[422538761,1779042645000,-152.66,0.00029232,2]
[422538759,1779042645000,-326.11240246,0.00029224,2]
[422538701,1779042645000,-410.26,0.00029105,2]
[422538699,1779042645000,-306.29,0.00029105,2]
[422538697,1779042645000,-410.8,0.00029105,2]
[422538693,1779042645000,-155.2,0.00029103,30]
[422538712,1779042645000,-410.8,0.00029137,7]
[422538703,1779042645000,-152.0,0.00029107,7]
[422538708,1779042645000,-152.82,0.00029112,2]
[422538706,1779042645000,-152.58,0.00029112,2]
[422538714,1779042645000,-306.29,0.00029137,7]
[422538717,1779042645000,-410.26,0.00029137,7]
[422538719,1779042645000,-156.0,0.00029146,2]
[422538732,1779042645000,-410.8,0.00029169,30]
[422538710,1779042645000,-306.01,0.00029137,7]
[422538749,1779042645000,-60830.0,0.000292,2]
[422538745,1779042645000,-152.82,0.00029192,30]
[422538730,1779042645000,-306.01,0.00029169,30]
[422538743,1779042645000,-152.58,0.00029192,30]
[422538755,1779042645000,-306.29,0.00029201,2]
[422538741,1779042645000,-155.2,0.00029189,7]
[422538723,1779042645000,-152.0,0.00029148,7]
[422538739,1779042645000,-156.0,0.00029189,7]
[422538727,1779042645000,-152.82,0.00029152,7]
[422538734,1779042645000,-306.29,0.00029169,30]
[422538737,1779042645000,-410.26,0.00029169,30]
[422538721,1779042645000,-155.2,0.00029146,2]
[422538725,1779042645000,-152.58,0.00029152,7]
[422538874,1779042646000,-285.26785714,0.0003098,30]
[422538891,1779042646000,-613.0,0.00031142,30]
[422538889,1779042646000,-460.0,0.00031142,30]
[422538887,1779042646000,-160.0,0.00031142,30]
[422538885,1779042646000,-214.0,0.00031142,30]
[422538878,1779042646000,-150.0,0.00031011,2]
[422538895,1779042646000,-174.0,0.00031142,30]
[422538893,1779042646000,-154.0,0.00031142,30]
[422538883,1779042646000,-200.0,0.00031096,2]
[422538880,1779042646000,-1399.55,0.00031085,7]
[422538899,1779042646000,-158.0,0.00031161,30]
[422538897,1779042646000,-429.0,0.00031161,30]
[422538910,1779042646000,-215.45807391,0.00031461,7]
[422538924,1779042646000,-220.02262786,0.00031667,7]
[422538898,1779042646000,-158.0,0.00031161,30]
[422538914,1779042646000,-177.04,0.00031471,2]
[422538904,1779042646000,-193.94909,0.000312,7]
[422538902,1779042646000,-1915.0,0.00031161,30]
[422538918,1779042646000,-1000.0,0.00031615,6]
[422538916,1779042646000,-1000.0,0.000315,7]